bitfinex-derivatives/quotes_BTCF0:USTF0_20250506
["timestamp","ask_amount","ask_price","bid_price","bid_amount"]
[1746525307951,0.21256747,94274.0,94273.0,0.58348604]
[1746525309245,0.42476807,94274.0,94273.0,0.58348604]
[1746525310247,0.42476807,94274.0,94273.0,0.37128324]
[1746525310443,0.42476807,94274.0,94273.0,0.58348604]
[1746525311750,0.42476807,94274.0,94273.0,0.37128324]
[1746525312253,0.42476807,94274.0,94273.0,0.01048324]
[1746525312457,0.2122118,94270.0,94269.0,0.21221]
[1746525312843,0.2764118,94270.0,94269.0,0.21221]
[1746525313048,0.3944118,94270.0,94269.0,0.21221]
[1746525313251,0.1822,94270.0,94269.0,0.21221]
[1746525313454,0.1822,94270.0,94269.0,0.22294255]
[1746525313650,0.1509,94270.0,94269.0,0.22294255]
[1746525314053,0.3631096,94270.0,94269.0,0.22294255]
[1746525316261,0.1509,94270.0,94269.0,0.22294255]
[1746525316961,0.3631096,94270.0,94269.0,0.22294255]
[1746525317760,0.3631096,94270.0,94269.0,0.22294435]
[1746525322973,0.1509,94270.0,94269.0,0.22294435]
[1746525324174,0.3953096,94270.0,94269.0,0.22294435]
[1746525324672,0.1831,94270.0,94269.0,0.22294435]
[1746525326674,0.1831,94270.0,94269.0,0.25464435]
[1746525329870,0.1831,94270.0,94269.0,0.31564435]
[1746525334080,0.118,94270.0,94269.0,0.31564435]
[1746525335273,0.118,94270.0,94269.0,1.76564435]
[1746525346879,0.118,94270.0,94269.0,0.31564435]
[1746525357895,0.118,94270.0,94269.0,0.67644435]
[1746525358798,0.118,94270.0,94269.0,0.69225293]
[1746525360098,0.118,94270.0,94269.0,0.69230873]
[1746525361302,0.118,94270.0,94269.0,0.69231916]
[1746525363107,0.118,94270.0,94269.0,0.6923266]
[1746525364696,0.118,94270.0,94269.0,0.69234607]
[1746525366296,0.118,94270.0,94269.0,0.69227069]
[1746525366497,0.118,94270.0,94269.0,0.67644435]
[1746525368007,0.1494,94270.0,94269.0,0.67644435]
[1746525371112,0.1494,94270.0,94269.0,0.31564435]
[1746525371308,0.1494,94270.0,94269.0,0.67644435]
[1746525373406,0.1494,94270.0,94269.0,0.69207412]
[1746525376504,0.1494,94270.0,94269.0,0.69209568]
[1746525378008,0.1494,94270.0,94269.0,0.69207236]
[1746525379812,0.1494,94270.0,94269.0,0.69206315]
[1746525384617,0.1494,94270.0,94269.0,0.67644435]
[1746525385116,0.1494,94270.0,94269.0,0.31564435]
[1746525385311,0.1494,94270.0,94269.0,0.67644435]
[1746525386206,0.118,94270.0,94269.0,0.67644435]
[1746525386716,0.118,94270.0,94269.0,0.69204663]
[1746525386920,0.118,94270.0,94269.0,2.14204663]
[1746525388524,0.118,94270.0,94269.0,2.12644435]
[1746525390413,0.118,94270.0,94269.0,0.67644435]
[1746525399438,0.118,94270.0,94269.0,0.31564435]
[1746525399738,0.118,94270.0,94269.0,0.67644435]
[1746525403626,0.118,94270.0,94269.0,0.31564435]
[1746525403831,0.118,94270.0,94269.0,0.67644435]
[1746525406438,0.118,94270.0,94269.0,2.12644435]
[1746525413849,0.118,94270.0,94269.0,0.67644435]
[1746525417753,0.118,94270.0,94269.0,0.61544435]
[1746525418049,0.118,94270.0,94269.0,0.67694435]
[1746525422251,0.1484,94270.0,94269.0,0.67694435]
[1746525428456,0.1817,94270.0,94269.0,0.64694435]
[1746525428652,0.1817,94270.0,94269.0,0.40323255]
[1746525428854,0.1817,94270.0,94269.0,0.61544435]
[1746525429050,0.1817,94270.0,94269.0,0.58374435]
[1746525430350,0.1817,94270.0,94269.0,0.61634435]
[1746525438064,0.1817,94270.0,94269.0,0.25554435]
[1746525446471,0.1817,94270.0,94269.0,0.28604435]
[1746525449078,0.1817,94270.0,94269.0,0.25554435]
[1746525453283,0.1484,94270.0,94269.0,0.25554435]
[1746525453576,0.1484,94270.0,94269.0,0.28624435]
[1746525480587,0.118,94270.0,94269.0,0.28624435]
[1746525485696,0.118,94270.0,94269.0,1.73624435]
[1746525487901,0.118,94270.0,94269.0,2.09704435]
[1746525494910,0.118,94270.0,94269.0,1.73624435]
[1746525495109,0.118,94270.0,94269.0,2.09704435]
[1746525507414,0.1492,94270.0,94269.0,2.09704435]
[1746525516230,0.1492,94270.0,94269.0,1.73624435]
[1746525516411,0.1492,94270.0,94269.0,2.09704435]
[1746525518424,0.1492,94270.0,94269.0,2.06634435]
[1746525521925,0.1492,94270.0,94269.0,0.61634435]
[1746525533927,0.3614096,94270.0,94269.0,0.37153255]
[1746525534130,0.5674896,94270.0,94269.0,0.37153255]
[1746525534335,0.5984896,94270.0,94269.0,0.37153255]
[1746525535025,0.4984896,94270.0,94269.0,0.37153255]
[1746525536824,0.4984896,94270.0,94269.0,0.58374435]
[1746525538130,0.4984896,94270.0,94269.0,0.37153255]
[1746525539027,0.3924096,94270.0,94269.0,0.37153255]
[1746525540225,0.3924096,94270.0,94269.0,0.01073255]
[1746525540424,0.2122118,94269.0,94268.0,0.2122137]
[1746525540930,0.2768118,94269.0,94268.0,0.2122137]
[1746525541127,0.2122141,94268.0,94267.0,0.2451163]
[1746525541631,0.2768141,94268.0,94267.0,0.2451163]
[1746525542133,0.3948141,94268.0,94267.0,0.2451163]
[1746525542634,0.3948141,94268.0,94267.0,0.25580741]
[1746525550739,0.1826,94268.0,94267.0,0.25580741]
[1746525551042,0.1826,94268.0,94267.0,0.28780741]
[1746525551233,0.3948141,94268.0,94267.0,0.28780741]
[1746525552041,0.1826,94268.0,94267.0,0.28780741]
[1746525552548,0.3948141,94268.0,94267.0,0.28780741]
[1746525552927,0.118,94268.0,94267.0,0.28780741]
[1746525554238,0.3302141,94268.0,94267.0,0.28780741]
[1746525554438,0.118,94268.0,94267.0,0.28780741]
[1746525555055,0.1484,94268.0,94267.0,0.28780741]
[1746525555451,0.3606141,94268.0,94267.0,0.28780741]
[1746525556157,0.1484,94268.0,94267.0,0.28780741]
[1746525556457,0.3606141,94268.0,94267.0,0.28780741]
[1746525561260,0.1484,94268.0,94267.0,0.28780741]
[1746525562260,0.118,94268.0,94267.0,0.28780741]
[1746525564060,0.3302141,94268.0,94267.0,0.28780741]
[1746525567658,0.118,94268.0,94267.0,0.28780741]
[1746525570466,0.3302141,94268.0,94267.0,0.28780741]
[1746525571569,0.118,94268.0,94267.0,0.28780741]
[1746525574870,0.3302141,94268.0,94267.0,0.28780741]
[1746525577265,0.118,94268.0,94267.0,0.28780741]
[1746525578274,0.3631141,94268.0,94267.0,0.28780741]
[1746525579374,0.1509,94268.0,94267.0,0.28780741]
[1746525586781,0.3631141,94268.0,94267.0,0.28780741]
[1746525586974,0.1509,94268.0,94267.0,0.28780741]
[1746525588986,0.118,94268.0,94267.0,0.28780741]
[1746525596488,0.118,94268.0,94267.0,0.28780741]
[1746525604594,0.1511,94268.0,94267.0,0.28780741]
[1746525615292,0.118,94268.0,94267.0,0.28780741]
[1746525620999,0.1499,94268.0,94267.0,0.28780741]
[1746525624703,0.1499,94268.0,94263.0,0.3608]
[1746525624704,0.0530596,94258.0,94251.0,0.3608]
[1746525624895,0.2122501,94252.0,94251.0,0.3712311]
[1746525625299,0.3302501,94252.0,94251.0,0.5834834]
[1746525625691,0.3945501,94252.0,94251.0,0.5834834]
[1746525626295,0.1823,94252.0,94251.0,0.5834834]
[1746525627702,0.3945501,94252.0,94251.0,0.5834834]
[1746525628008,0.1823,94252.0,94251.0,0.5834834]
[1746525628306,0.3945501,94252.0,94251.0,0.5834834]
[1746525628805,0.1823,94252.0,94251.0,0.5834834]
[1746525632706,0.1823,94252.0,94251.0,0.6145834]
[1746525634108,0.3945501,94252.0,94251.0,0.6145834]
[1746525634907,0.1823,94252.0,94251.0,0.2537834]
[1746525636014,0.3945501,94252.0,94251.0,0.2537834]
[1746525640211,0.1823,94252.0,94251.0,0.2537834]
[1746525640414,0.3945501,94252.0,94251.0,0.2537834]
[1746525640802,0.1823,94252.0,94251.0,0.2537834]
[1746525641007,0.3945501,94252.0,94251.0,0.2537834]
[1746525641411,0.3945501,94252.0,94251.0,0.0104311]
[1746525641607,0.3945501,94252.0,94251.0,0.2122523]
[1746525642509,0.3945501,94252.0,94251.0,0.01049485]
[1746525642709,0.4476132,94252.0,94251.0,0.2122523]
[1746525643719,0.2122546,94250.0,94249.0,0.2653191]
[1746525643919,0.2122546,94250.0,94249.0,0.2969191]
[1746525644112,0.3302546,94250.0,94249.0,0.2969191]
[1746525645919,0.118,94250.0,94249.0,0.2969191]
[1746525646126,0.3302546,94250.0,94249.0,0.2969191]
[1746525646306,0.3302546,94250.0,94249.0,0.30777033]
[1746525646510,0.118,94250.0,94249.0,0.30777033]
[1746525647619,0.3302546,94250.0,94249.0,0.30777033]
[1746525648421,0.3302546,94250.0,94249.0,0.25470673]
[1746525648821,0.3916546,94250.0,94249.0,0.25470673]
[1746525650024,0.1794,94250.0,94249.0,0.25470673]
[1746525650322,0.3916546,94250.0,94249.0,0.25470673]
[1746525659721,0.3916546,94250.0,94249.0,0.28590673]
[1746525660324,0.3916546,94250.0,94249.0,0.0316]
[1746525660628,0.4238546,94250.0,94249.0,0.0316]
[1746525661020,0.4238546,94250.0,94249.0,0.2438568]
[1746525661421,0.4238546,94250.0,94249.0,0.0316]
[1746525661628,0.4238546,94250.0,94249.0,0.2438568]
[1746525666027,0.4238546,94250.0,94249.0,0.0316]
[1746525666331,0.0530655,94247.0,94241.0,0.0530687]
[1746525666625,0.2122861,94236.0,94235.0,0.00106117]
[1746525666832,0.2122861,94236.0,94235.0,0.21334957]
[1746525667234,0.3302861,94236.0,94235.0,0.00106117]
[1746525667530,0.3939861,94236.0,94235.0,0.00106117]
[1746525668123,0.3939861,94236.0,94235.0,0.03286117]
[1746525668531,0.3939861,94236.0,94235.0,0.24514957]
[1746525669724,0.3302861,94236.0,94235.0,0.24514957]
[1746525670128,0.3302861,94236.0,94235.0,0.27814957]
[1746525676640,0.118,94236.0,94235.0,0.2862383]
[1746525676838,0.118,94236.0,94235.0,0.6470383]
[1746525677033,0.0783678,94236.0,94235.0,1.0031543]
[1746525677234,0.265316,94255.0,94254.0,0.2122411]
[1746525677632,0.2122538,94255.0,94254.0,0.2122411]
[1746525678031,0.2122538,94255.0,94254.0,0.2738411]
[1746525678231,0.3302538,94255.0,94254.0,0.2738411]
[1746525680739,0.118,94255.0,94254.0,0.2738411]
[1746525680941,0.3302433,94255.0,94254.0,0.2738411]
[1746525681344,0.118,94255.0,94254.0,0.2738411]
[1746525691850,0.118,94255.0,94254.0,0.6346411]
[1746525696845,0.118,94255.0,94254.0,0.2738411]
[1746525697050,0.118,94255.0,94254.0,0.6346411]
[1746525707549,0.1504,94255.0,94254.0,0.6346411]
[1746525711861,0.1504,94255.0,94254.0,0.6034411]
[1746525712459,0.3626433,94255.0,94254.0,0.6034411]
[1746525712963,0.1504,94255.0,94254.0,0.6034411]
[1746525724080,0.118,94255.0,94254.0,0.6034411]
[1746525724269,0.118,94255.0,94254.0,0.6344411]
[1746525728379,0.118,94255.0,94254.0,2.0844411]
[1746525735276,0.3302433,94255.0,94254.0,0.3912]
[1746525735586,0.1489,94255.0,94254.0,0.6034456]
[1746525735776,0.1813,94255.0,94254.0,0.6034456]
[1746525743487,0.3935433,94255.0,94254.0,0.6034456]
[1746525743687,0.1813,94255.0,94254.0,0.6034456]
[1746525757802,0.1813,94255.0,94254.0,0.6352456]
[1746525760897,0.118,94255.0,94254.0,0.6352456]
[1746525770804,0.118,94255.0,94254.0,0.64296471]
[1746525782712,0.118,94255.0,94254.0,2.09296471]
[1746525784700,0.1506,94255.0,94254.0,2.09296471]
[1746525786213,0.1506,94255.0,94254.0,0.64296471]
[1746525792915,0.118,94255.0,94254.0,0.64296471]
[1746525802118,0.118,94255.0,94254.0,2.09296471]
[1746525808922,0.118,94255.0,94254.0,0.64296471]
[1746525809920,0.118,94255.0,94254.0,0.28216471]
[1746525810125,0.118,94255.0,94254.0,0.64296471]
[1746525810721,0.118,94255.0,94254.0,0.61116471]
[1746525816325,0.3302433,94255.0,94254.0,0.36851911]
[1746525816524,0.3302433,94255.0,94254.0,0.58076471]
[1746525816913,0.118,94255.0,94254.0,0.58076471]
[1746525817118,0.1819,94255.0,94254.0,0.58076471]
[1746525817628,0.3941433,94255.0,94254.0,0.36851911]
[1746525817819,0.3941433,94255.0,94254.0,0.58076471]
[1746525822327,0.3941433,94255.0,94254.0,0.36851911]
[1746525822719,0.3941433,94255.0,94254.0,0.58076471]
[1746525828336,0.3941433,94255.0,94254.0,0.21996471]
[1746525830534,0.3941433,94255.0,94254.0,0.00771911]
[1746525830927,0.4941433,94255.0,94254.0,0.00771911]
[1746525831127,0.8549433,94255.0,94254.0,0.00771911]
[1746525831837,0.7549433,94255.0,94254.0,0.00771911]
[1746525832230,0.7549433,94255.0,94254.0,0.25226471]
[1746525832835,0.3941433,94255.0,94254.0,0.25226471]
[1746525837540,0.3941433,94255.0,94254.0,0.04001911]
[1746525838445,0.3941433,94255.0,94254.0,0.25226471]
[1746525841237,0.3941433,94255.0,94254.0,0.04001911]
[1746525841939,0.3941433,94255.0,94254.0,0.25226471]
[1746525842242,0.3941433,94255.0,94254.0,0.04001911]
[1746525843842,0.3941433,94255.0,94254.0,0.25226471]
[1746525849442,0.3941433,94255.0,94254.0,0.04001911]
[1746525849752,0.3941433,94255.0,94254.0,0.25226471]
[1746525850351,0.7549433,94255.0,94254.0,0.25226471]
[1746525856055,0.7549433,94255.0,94254.0,0.28346471]
[1746525858353,0.3941433,94255.0,94254.0,0.28346471]
[1746525884970,0.3941433,94255.0,94254.0,0.07121911]
[1746525885778,0.3941433,94255.0,94254.0,0.00771911]
[1746525885975,0.2122794,94239.0,94238.0,0.0619]
[1746525886175,0.2122839,94237.0,94236.0,0.0324]
[1746525886887,0.3753839,94237.0,94236.0,0.0324]
[1746525887068,0.4933839,94237.0,94236.0,0.0324]
[1746525892597,0.4933839,94237.0,94236.0,0.0656]
[1746525898787,0.3933839,94237.0,94236.0,0.0656]
[1746525903988,0.3933839,94237.0,94236.0,0.0324]
[1746525912091,0.3933839,94237.0,94236.0,0.0647]
[1746525928207,0.53120211,94236.0,94235.0,7e-08]
[1746525930112,0.4250861,94236.0,94235.0,7e-08]
[1746525958935,0.58120211,94236.0,94235.0,7e-08]
[1746525961233,0.53120211,94236.0,94235.0,7e-08]
[1746525966122,0.58120211,94236.0,94235.0,7e-08]
[1746525976547,0.3802861,94236.0,94235.0,7e-08]
[1746525977344,0.4103861,94236.0,94235.0,7e-08]
[1746525977937,0.4103861,94236.0,94235.0,0.03040007]
[1746525978941,0.65358716,94236.0,94235.0,0.03040007]
[1746525980449,0.62348716,94236.0,94235.0,0.03040007]
[1746525980637,0.63736716,94236.0,94235.0,0.03040007]
[1746525981343,0.51936716,94236.0,94235.0,0.03040007]
[1746525984260,0.2761661,94236.0,94235.0,0.03040007]
[1746525999979,0.3608,94237.0,94235.0,0.03040007]
[1746526000172,0.0530704,94238.0,94235.0,0.14840007]
[1746526000368,0.2122839,94237.0,94236.0,0.0316]
[1746526000773,0.2122839,94237.0,94236.0,0.0645]
[1746526004079,0.2122839,94237.0,94236.0,0.1825]
[1746526005085,0.2122839,94237.0,94236.0,0.0645]
[1746526008485,0.2423839,94237.0,94236.0,0.0645]
[1746526010982,0.2122839,94237.0,94236.0,0.0645]
[1746526011582,0.2444839,94237.0,94236.0,0.0645]
[1746526017793,0.2775839,94237.0,94236.0,0.0645]
[1746526021295,0.06388,94238.0,94236.0,0.0645]
[1746526021594,0.2761616,94238.0,94237.0,0.2122839]
[1746526021796,0.2761616,94238.0,94237.0,0.2440839]
[1746526021998,0.2761616,94238.0,94237.0,0.3069839]
[1746526022394,0.06388,94238.0,94237.0,0.3069839]
[1746526023690,0.2761616,94238.0,94237.0,0.3069839]
[1746526024600,0.2122816,94238.0,94237.0,0.3069839]
[1746526025302,0.265348,94240.0,94239.0,0.2122794]
[1746526025603,0.2122787,94240.0,94239.0,0.2122794]
[1746526026706,0.2122816,94238.0,94237.0,0.3069817]
[1746526027389,0.2122785,94240.0,94239.0,0.2122771]
[1746526028200,0.2122735,94242.0,94241.0,0.2653385]
[1746526028408,0.21227,94244.0,94243.0,0.2122681]
[1746526030106,0.2653514,94240.0,94239.0,0.2122785]
[1746526030609,0.2122816,94238.0,94237.0,0.2971533]
[1746526031009,0.2122769,94241.0,94240.0,0.2122734]
[1746526031615,0.3290401,94243.0,94242.0,0.2122726]
[1746526032117,0.4470401,94243.0,94242.0,0.2122726]
[1746526032419,0.3939721,94243.0,94242.0,0.2122726]
[1746526033817,0.3939721,94243.0,94241.0,0.2122743]
[1746526033818,0.2122726,94242.0,94241.0,0.2122743]
[1746526034018,0.1817,94243.0,94241.0,0.2122743]
[1746526034218,0.118,94242.0,94241.0,0.2122743]
[1746526034623,0.1501,94242.0,94241.0,0.2122743]
[1746526035211,0.1501,94242.0,94239.0,0.2122786]
[1746526035414,0.2122765,94241.0,94240.0,0.2122771]
[1746526036927,0.212273,94242.0,94241.0,0.2122703]
[1746526038217,0.330273,94242.0,94241.0,0.2122703]
[1746526038419,0.2122794,94240.0,94239.0,0.2122786]
[1746526040232,0.2122794,94240.0,94239.0,0.2445786]
[1746526040720,0.118,94242.0,94241.0,0.2122749]
[1746526041122,0.3302726,94242.0,94241.0,0.2122749]
[1746526041317,0.118,94242.0,94241.0,0.2122749]
[1746526041525,0.3302726,94242.0,94241.0,0.2122749]
[1746526042136,0.2122726,94242.0,94241.0,0.2122749]
[1746526044226,0.3302726,94242.0,94241.0,0.2122749]
[1746526045235,0.3302726,94242.0,94241.0,0.2445749]
[1746526047328,0.3943726,94242.0,94241.0,0.2445749]
[1746526049432,0.3943726,94242.0,94241.0,0.0323]
[1746526050740,0.3943726,94242.0,94241.0,0.2445749]
[1746526050934,0.3943726,94242.0,94241.0,0.0323]
[1746526055842,0.2122861,94236.0,94235.0,7e-08]
[1746526056635,0.2440861,94236.0,94235.0,7e-08]
[1746526057240,0.118,94236.0,94235.0,0.21228847]
[1746526058246,0.3608,94242.0,94241.0,0.2122749]
[1746526059139,0.4788,94242.0,94241.0,0.2767749]
[1746526060145,0.118,94242.0,94241.0,0.2767749]
[1746526060844,0.3302726,94242.0,94241.0,0.2767749]
[1746526061034,0.3616726,94242.0,94241.0,0.2767749]
[1746526061235,0.1494,94242.0,94241.0,0.2767749]
[1746526064447,0.1812,94242.0,94241.0,0.2767749]
[1746526073155,0.3934726,94242.0,94241.0,0.2767749]
[1746526074050,0.1812,94242.0,94241.0,0.2767749]
[1746526074945,0.1494,94242.0,94241.0,0.2767749]
[1746526078649,0.1806,94242.0,94241.0,0.2767749]
[1746526084963,0.3928726,94242.0,94241.0,0.2767749]
[1746526086255,0.1806,94242.0,94241.0,0.2767749]
[1746526088077,0.118,94242.0,94241.0,0.2767749]
[1746526094779,0.1506,94242.0,94241.0,0.2767749]
[1746526099483,0.1837,94242.0,94241.0,0.2767749]
[1746526103480,0.3959726,94242.0,94241.0,0.2439749]
[1746526104282,0.1837,94242.0,94241.0,0.2439749]
[1746526105271,0.1837,94242.0,94241.0,0.2750749]
[1746526109488,0.3959726,94242.0,94241.0,0.2750749]
[1746526110184,0.1837,94242.0,94241.0,0.2750749]
[1746526120690,0.3959726,94242.0,94241.0,0.2750749]
[1746526124592,0.1837,94242.0,94241.0,0.2750749]
[1746526127292,0.3959726,94242.0,94241.0,0.2750749]
[1746526127998,0.1837,94242.0,94241.0,0.2750749]
[1746526129696,0.3959726,94242.0,94241.0,0.2750749]
[1746526130702,0.3959726,94242.0,94241.0,0.0628]
[1746526130891,0.3959726,94242.0,94241.0,0.2750749]
[1746526131799,0.1837,94242.0,94241.0,0.2750749]
[1746526132096,0.3959726,94242.0,94241.0,0.2750749]
[1746526132898,0.1837,94242.0,94241.0,0.2750749]
[1746526139401,0.3959726,94242.0,94241.0,0.2750749]
[1746526140204,0.1837,94242.0,94241.0,0.2750749]
[1746526152307,0.3959726,94242.0,94241.0,0.0317]
[1746526152805,0.4283726,94242.0,94241.0,0.0317]
[1746526153995,0.7891726,94242.0,94241.0,0.0317]
[1746526157211,0.4283726,94242.0,94241.0,0.0317]
[1746526157410,0.7891726,94242.0,94241.0,0.0317]
[1746526158211,0.4283726,94242.0,94241.0,0.0317]
[1746526158407,0.7891726,94242.0,94241.0,0.0317]
[1746526158609,0.4788,94242.0,94241.0,0.2439749]
[1746526159415,0.4788,94242.0,94241.0,0.2763749]
[1746526159713,0.6910726,94242.0,94241.0,0.2763749]
[1746526168332,0.6910726,94242.0,94241.0,0.0641]
[1746526168518,0.2122816,94238.0,94237.0,0.03006]
[1746526168917,0.2122816,94238.0,94237.0,0.2122839]
[1746526169216,0.3302816,94238.0,94237.0,0.2122839]
[1746526169528,0.2122861,94236.0,94235.0,0.27335463]
[1746526170228,0.3614861,94236.0,94235.0,0.27335463]
[1746526171830,0.3614861,94236.0,94235.0,0.22028263]
[1746526172830,0.3614861,94236.0,94235.0,0.28408263]
[1746526173530,0.3614861,94236.0,94235.0,0.07179553]
[1746526173828,0.47196477,94236.0,94235.0,7e-08]
[1746526174127,0.2123154,94223.0,94211.0,0.2123419]
[1746526174321,0.5731154,94223.0,94219.0,0.0329]
[1746526175123,0.7517154,94223.0,94219.0,0.0329]
[1746526177725,0.118,94223.0,94222.0,0.57470968]
[1746526177924,0.118,94223.0,94222.0,0.62470968]
[1746526178128,0.2122783,94240.0,94239.0,0.2122749]
[1746526178336,0.2653422,94242.0,94241.0,0.2122749]
[1746526178734,0.212274,94242.0,94241.0,0.2122749]
[1746526179124,0.2122696,94244.0,94243.0,0.2122704]
[1746526179335,0.2761496,94244.0,94243.0,0.2122704]
[1746526180036,0.2122696,94244.0,94243.0,0.2122704]
[1746526180237,0.3941496,94244.0,94243.0,0.2451704]
[1746526182037,0.3941496,94244.0,94243.0,0.0329]
[1746526182231,0.4272496,94244.0,94243.0,0.0329]
[1746526182433,0.4272496,94244.0,94243.0,0.0641]
[1746526182830,0.4272496,94244.0,94243.0,0.2763704]
[1746526183033,0.4587496,94244.0,94243.0,0.2763704]
[1746526183235,0.4587496,94244.0,94243.0,0.0312]
[1746526183540,0.2122861,94236.0,94235.0,0.00798997]
[1746526183837,0.2122906,94234.0,94233.0,0.212292]
[1746526184034,0.2122906,94234.0,94233.0,0.245592]
[1746526184335,0.3302906,94234.0,94233.0,0.245592]
[1746526184528,0.118,94234.0,94233.0,0.245592]
[1746526186934,0.3302906,94234.0,94233.0,0.245592]
[1746526187631,0.3302906,94234.0,94233.0,0.277492]
[1746526188239,0.3302906,94234.0,94233.0,0.2774929]
[1746526188540,0.3615906,94234.0,94233.0,0.2774929]
[1746526192236,0.3615906,94234.0,94233.0,0.0652]
[1746526192547,0.3615906,94234.0,94233.0,0.2774929]
[1746526195645,0.3615906,94234.0,94233.0,0.0319]
[1746526196148,0.3942906,94234.0,94233.0,0.0319]
[1746526201146,0.2123154,94223.0,94220.0,0.3608]
[1746526201344,0.2123154,94223.0,94221.0,0.0628]
[1746526201541,0.2123154,94223.0,94222.0,0.21390968]
[1746526201741,0.2123154,94223.0,94222.0,0.24510968]
[1746526202148,0.3303154,94223.0,94222.0,0.24510968]
[1746526202650,0.3632154,94223.0,94222.0,0.27810968]
[1746526206054,0.3632154,94223.0,94222.0,0.06579198]
[1746526206646,0.3632154,94223.0,94222.0,0.27810968]
[1746526207149,0.3632154,94223.0,94222.0,0.06579198]
[1746526207454,0.3960154,94223.0,94222.0,0.03459198]
[1746526208747,0.4960154,94223.0,94222.0,0.03459198]
[1746526209555,0.4960154,94223.0,94222.0,0.00159198]
[1746526213549,0.6021474,94223.0,94222.0,0.00159198]
[1746526224362,0.6322474,94223.0,94222.0,0.00159198]
[1746526227863,0.82133821,94223.0,94222.0,0.00159198]
[1746526229067,0.71520621,94223.0,94222.0,0.00159198]
[1746526237170,0.68240621,94223.0,94222.0,0.00159198]
[1746526244778,0.4933154,94223.0,94222.0,0.00159198]
[1746526252082,0.5573554,94223.0,94222.0,0.00159198]
[1746526267493,0.3943554,94223.0,94222.0,0.00159198]
[1746526290998,0.4270554,94223.0,94222.0,0.00159198]
[1746526291503,0.4595554,94223.0,94222.0,0.00159198]
[1746526296405,0.5595554,94223.0,94222.0,0.00159198]
[1746526297008,0.4595554,94223.0,94222.0,0.00159198]
[1746526297211,0.5595554,94223.0,94222.0,0.00159198]
[1746526305614,0.6095554,94223.0,94222.0,0.00159198]
[1746526321622,0.4803154,94223.0,94222.0,0.00159198]
[1746526321827,0.3942354,94223.0,94222.0,0.00159198]
[1746526322124,0.3942354,94223.0,94222.0,0.03369198]
[1746526323127,0.2762354,94223.0,94222.0,0.03369198]
[1746526332837,0.0841758,94229.0,94222.0,0.03369198]
[1746526332838,0.44339529,94237.0,94222.0,0.13982398]
[1746526333036,0.2123029,94229.0,94223.0,0.033]
[1746526333242,0.0530757,94229.0,94224.0,0.0332]
[1746526333443,0.2123072,94227.0,94224.0,0.0332]
[1746526333744,0.0530737,94232.0,94225.0,0.0308]
[1746526333949,0.21637248,94233.0,94225.0,0.0308]
[1746526334148,0.21637248,94233.0,94226.0,0.0324]
[1746526334342,0.26944598,94233.0,94226.0,0.0324]
[1746526334541,0.2123041,94228.0,94227.0,0.0613]
[1746526335753,0.2453041,94228.0,94227.0,0.0613]
[1746526335952,0.2781041,94228.0,94227.0,0.0613]
[1746526336153,0.3961041,94228.0,94227.0,0.0613]
[1746526339063,0.118,94228.0,94227.0,0.0613]
[1746526340361,0.2123041,94228.0,94227.0,0.0613]
[1746526340555,0.3608,94229.0,94227.0,0.0613]
[1746526340753,0.2123041,94228.0,94227.0,0.0613]
[1746526342264,0.3303041,94228.0,94227.0,0.0613]
[1746526343158,0.2123154,94223.0,94222.0,0.00159198]
[1746526344263,0.3303154,94223.0,94222.0,0.00159198]
[1746526344464,0.3617154,94223.0,94222.0,0.00159198]
[1746526353568,0.4256354,94223.0,94222.0,0.00159198]
[1746526365969,0.4256354,94223.0,94222.0,0.03399198]
[1746526367575,0.4256354,94223.0,94222.0,0.00159198]
[1746526382487,0.7864354,94223.0,94222.0,0.00159198]
[1746526383383,0.4256354,94223.0,94222.0,0.00159198]
[1746526383685,0.7864354,94223.0,94222.0,0.00159198]
[1746526385085,0.7864354,94223.0,94222.0,0.03239198]
[1746526411808,0.4256354,94223.0,94222.0,0.06479198]
[1746526412008,0.7864354,94223.0,94222.0,0.06479198]
[1746526414219,0.3303154,94223.0,94222.0,0.06479198]
[1746526415214,0.2123154,94223.0,94222.0,0.09719198]
[1746526417216,0.3303154,94223.0,94222.0,0.09719198]
[1746526423123,0.5731154,94223.0,94222.0,0.09719198]
[1746526424016,0.2123154,94223.0,94222.0,0.09719198]
[1746526424215,0.3303154,94223.0,94222.0,0.09719198]
[1746526433419,0.3303154,94223.0,94222.0,0.41564168]
[1746526434118,0.2123154,94223.0,94222.0,0.41564168]
[1746526435231,0.06428,94233.0,94231.0,0.2122951]
[1746526435428,0.6261631,94236.0,94235.0,0.2122884]
[1746526435631,0.2122906,94234.0,94233.0,0.2653634]
[1746526435825,0.2122906,94234.0,94233.0,0.2966634]
[1746526436331,0.2122906,94234.0,94233.0,0.0313]
[1746526437227,0.3302906,94234.0,94233.0,0.0313]
[1746526437627,0.3917906,94234.0,94233.0,0.0313]
[1746526439425,0.3917906,94234.0,94222.0,0.21390698]
[1746526439426,0.2123154,94223.0,94222.0,0.21390698]
[1746526439622,0.2123154,94223.0,94222.0,0.24540698]
[1746526439818,0.2123154,94223.0,94222.0,0.03309198]
[1746526440127,0.3303154,94223.0,94222.0,0.00159198]
[1746526440827,0.3957154,94223.0,94222.0,0.00159198]
[1746526443535,0.4957154,94223.0,94222.0,0.00159198]
[1746526450031,0.3957154,94223.0,94222.0,0.00159198]
[1746526464555,0.4597954,94223.0,94222.0,0.00159198]
[1746526464752,0.3943954,94223.0,94222.0,0.00159198]
[1746526464959,0.3943954,94223.0,94222.0,0.03279198]
[1746526466657,0.3943954,94223.0,94222.0,0.06549198]
[1746526467454,0.18208,94223.0,94222.0,0.27780968]
[1746526467860,0.3943954,94223.0,94222.0,0.06549198]
[1746526468162,0.2763954,94223.0,94222.0,0.06549198]
[1746526469952,0.06408,94233.0,94227.0,0.212305]
[1746526470260,0.06408,94233.0,94228.0,0.0613]
[1746526470261,0.2123019,94229.0,94228.0,0.0613]
[1746526472259,0.3303019,94229.0,94228.0,0.0613]
[1746526473855,0.7229019,94229.0,94228.0,0.0613]
[1746526474162,0.7533019,94229.0,94228.0,0.0613]
[1746526474569,0.7533019,94229.0,94228.0,0.0304]
[1746526478768,0.7533019,94229.0,94222.0,0.00159198]
[1746526478769,0.2123154,94223.0,94222.0,0.00159198]
[1746526479158,0.3303154,94223.0,94222.0,0.00159198]
[1746526480058,0.3616154,94223.0,94222.0,0.00159198]
[1746526486362,0.3616154,94223.0,94222.0,0.03459198]
[1746526493671,0.3920154,94223.0,94222.0,0.03459198]
[1746526494173,0.60855824,94223.0,94222.0,0.03459198]
[1746526504174,0.96935824,94223.0,94222.0,0.03459198]
[1746526508478,0.93895824,94223.0,94222.0,0.03459198]
[1746526508871,0.118,94223.0,94222.0,0.24690968]